[Event "SUNWAY"]
[Date "2016.12.22"]
[Round "8.16"]
[White "Sarkar, Justin"]
[Black "Petrov, Nikita"]
[Result "1/2-1/2"]
[WhiteElo "2415"]
[BlackElo "2512"]
[ECO "E32"]
[WhiteFed "USA"]
[BlackFed "RUS"]
[FCGameId "-412069477"]
[TimeControl "5400+30"]

1. d4 {[%clk 1:30:53]} Nf6 {[%clk 1:30:53]} 2. c4 {[%clk 1:31:01]} e6  {[%clk 1:31:17]} 3. Nc3 {[%clk 1:30:31]} Bb4 {[%clk 1:31:40]} 4. Qc2  {[%clk 1:30:06]} O-O {[%clk 1:31:45]} 5. a3 {[%clk 1:24:02]} Bxc3+  {[%clk 1:32:01]} 6. Qxc3 {[%clk 1:24:27]} d5 {[%clk 1:31:52]} 7. Nf3  {[%clk 1:22:13]} dxc4 {[%clk 1:30:51]} 8. Qxc4 {[%clk 1:22:05]} b6  {[%clk 1:31:06]} 9. Bg5 {[%clk 1:22:24]} Ba6 {[%clk 1:30:56]} 10. Qa4  {[%clk 1:22:02]} Qd7 {[%clk 1:30:54]} 11. Qxd7 {[%clk 1:08:02]} Nbxd7  {[%clk 1:30:45]} 12. Bxf6 {[%clk 1:08:11]} gxf6 {[%clk 1:30:40]} 13. e3  {[%clk 1:08:16]} Bb7 {[%clk 1:30:15]} 14. Bb5 {[%clk 1:07:45]} Rfd8  {[%clk 1:14:18]} 15. O-O {[%clk 1:07:14]} c6 {[%clk 1:11:29]} 16. Be2  {[%clk 1:07:04]} c5 {[%clk 1:11:46]} 17. b4 {[%clk 1:05:48]} a5 {[%clk 1:04:20]}  18. dxc5 {[%clk 1:01:22]} bxc5 {[%clk 1:03:42]} 19. bxc5 {[%clk 0:53:57]} Nxc5  {[%clk 1:03:54]} 20. Nd4 {[%clk 0:54:21]} e5 {[%clk 1:00:26]} 21. Nf5  {[%clk 0:54:22]} Be4 {[%clk 0:58:01]} 22. Ng3 {[%clk 0:53:24]} Bd3  {[%clk 0:54:17]} 23. Bxd3 {[%clk 0:52:57]} Rxd3 {[%clk 0:51:30]} 24. h4  {[%clk 0:53:11]} Nb3 {[%clk 0:49:22]} 25. Rad1 {[%clk 0:45:42]} Nd2  {[%clk 0:45:02]} 26. Ne4 {[%clk 0:40:57]} Rad8 {[%clk 0:45:19]} 27. Nxd2  {[%clk 0:41:17]} Rxd2 {[%clk 0:45:44]} 28. Rxd2 {[%clk 0:41:14]} Rxd2  {[%clk 0:46:08]} 29. Rc1 {[%clk 0:41:37]} Ra2 {[%clk 0:43:59]} 30. Rc3  {[%clk 0:41:53]} h5 {[%clk 0:43:15]} 31. f3 {[%clk 0:41:38]} Kg7  {[%clk 0:43:06]} 32. Kh2 {[%clk 0:38:39]} f5 {[%clk 0:37:24]} 33. Rc5  {[%clk 0:36:22]} f6 {[%clk 0:37:02]} 34. Rxa5 {[%clk 0:33:04]} Re2  {[%clk 0:37:25]} 35. a4 {[%clk 0:32:42]} Rxe3 {[%clk 0:37:46]} 36. Rc5  {[%clk 0:32:02]} Ra3 {[%clk 0:37:35]} 37. f4 {[%clk 0:30:46]} Rxa4  {[%clk 0:36:56]} 38. fxe5 {[%clk 0:31:11]} Rxh4+ {[%clk 0:37:16]} 39. Kg3  {[%clk 0:31:21]} Rg4+ {[%clk 0:37:41]} 40. Kh3 {[%clk 1:01:31]} fxe5  {[%clk 1:08:03]} 41. Rxe5 {[%clk 1:01:57]} Kf6 {[%clk 1:08:24]} 42. Rb5  {[%clk 1:02:18]} h4 {[%clk 1:08:15]} 43. Rb8 {[%clk 1:02:13]} Rg3+  {[%clk 1:08:05]} 44. Kh2 {[%clk 1:02:38]} Ke5 {[%clk 1:07:40]} 45. Rh8  {[%clk 1:02:42]} Rg4 {[%clk 1:08:03]} 46. Kh3 {[%clk 1:03:04]} Rg3+  {[%clk 1:08:26]} 47. Kh2 {[%clk 1:03:30]} Rg4 {[%clk 1:08:53]} 48. Kh3  {[%clk 1:03:55]} Rg3+ {[%clk 1:09:20]} 49. Kh2 {[%clk 1:04:21]} Rg4  {[%clk 1:09:47]} 1/2-1/2

[Event "SUNWAY"]
[Date "2016.12.22"]
[Round "8.17"]
[White "Liang, Awonder"]
[Black "Derakhshani, Dorsa"]
[Result "1-0"]
[WhiteElo "2495"]
[BlackElo "2370"]
[ECO "E21"]
[WhiteFed "USA"]
[BlackFed "IRI"]
[FCGameId "-1437859879"]
[TimeControl "5400+30"]

1. d4 Nf6 2. c4 e6 3. Nf3 b6 4. Nc3 Bb4 5. e3 Bb7 6. Bd3 Bxc3+ 7. bxc3 d6 8. O-O  Nbd7 9. Re1 Ne4 10. Nd2 Nxd2 11. Bxd2 Qh4 12. e4 O-O-O 13. Be3 a5 14. f3 Qe7 15.  Rb1 e5 16. Qe2 g5 17. Rb5 Bc6 18. Rb2 Rdg8 19. c5 dxc5 20. Ba6+ Kb8 21. Qc4 Ka7  22. Bb5 Rg6 23. Bxc6 Rxc6 24. Qa4 Rg6 25. Rb5 exd4 26. cxd4 g4 27. dxc5 Kb7 28.  cxb6 cxb6 29. f4 Ra8 30. e5 Rc6 31. Rd1 Qe6 32. Rbd5 Rd8 33. Rd6 Rc4 34. Qb3 a4  35. Qb5 1-0

[Event "SUNWAY"]
[Date "2016.12.21"]
[Round "7.1"]
[White "Vocaturo, Daniele"]
[Black "Romanov, Evgeny"]
[Result "1-0"]
[WhiteElo "2606"]
[BlackElo "2622"]
[ECO "C45"]
[WhiteFed "ITA"]
[BlackFed "RUS"]
[FCGameId "859932459"]
[TimeControl "5400+30"]

1. e4 {[%clk 1:30:57]} e5 {[%clk 1:21:13]} 2. Nf3 {[%clk 1:30:41]} Nc6  {[%clk 1:21:38]} 3. d4 {[%clk 1:30:28]} exd4 {[%clk 1:22:01]} 4. Nxd4  {[%clk 1:30:51]} Bc5 {[%clk 1:22:25]} 5. Nxc6 {[%clk 1:30:34]} bxc6  {[%clk 1:22:46]} 6. Bd3 {[%clk 1:29:56]} d6 {[%clk 1:22:59]} 7. O-O  {[%clk 1:29:08]} Nf6 {[%clk 1:23:24]} 8. Nd2 {[%clk 1:23:06]} h6  {[%clk 1:17:52]} 9. c3 {[%clk 1:21:44]} a5 {[%clk 1:08:32]} 10. Nb3  {[%clk 1:16:44]} Bb6 {[%clk 1:08:47]} 11. Nd4 {[%clk 1:16:44]} Ng4  {[%clk 1:02:52]} 12. Bf4 {[%clk 1:15:17]} Qf6 {[%clk 1:00:20]} 13. Bg3  {[%clk 1:02:42]} h5 {[%clk 0:54:50]} 14. Qf3 {[%clk 0:57:11]} Qxf3  {[%clk 0:48:42]} 15. Nxf3 {[%clk 0:54:42]} f6 {[%clk 0:48:56]} 16. Bc2  {[%clk 0:47:11]} Ba6 {[%clk 0:44:19]} 17. Ba4 {[%clk 0:34:29]} Bb5  {[%clk 0:43:29]} 18. Bxb5 {[%clk 0:34:16]} cxb5 {[%clk 0:43:58]} 19. a4  {[%clk 0:28:42]} b4 {[%clk 0:39:32]} 20. cxb4 {[%clk 0:28:15]} axb4  {[%clk 0:39:57]} 21. b3 {[%clk 0:28:11]} Ne5 {[%clk 0:35:29]} 22. Bxe5  {[%clk 0:27:09]} fxe5 {[%clk 0:35:57]} 23. Rac1 {[%clk 0:27:00]} Rf8  {[%clk 0:35:52]} 24. Rc4 {[%clk 0:24:45]} Rb8 {[%clk 0:35:48]} 25. Rfc1  {[%clk 0:21:19]} g5 {[%clk 0:31:34]} 26. R1c2 {[%clk 0:20:18]} g4  {[%clk 0:29:29]} 27. Nh4 {[%clk 0:15:16]} Kd7 {[%clk 0:27:20]} 28. Kf1  {[%clk 0:15:03]} Ba5 {[%clk 0:16:29]} 29. Nf5 {[%clk 0:12:45]} Rbc8  {[%clk 0:13:20]} 30. Rd2 {[%clk 0:11:44]} Rf6 {[%clk 0:12:19]} 31. Rc5  {[%clk 0:11:18]} Bb6 {[%clk 0:10:41]} 32. Rxe5 {[%clk 0:11:38]} Re8  {[%clk 0:09:03]} 33. Rxe8 {[%clk 0:10:50]} Kxe8 {[%clk 0:09:32]} 34. Ng7+  {[%clk 0:10:47]} Kd7 {[%clk 0:06:57]} 35. Nxh5 {[%clk 0:11:06]} Rh6  {[%clk 0:04:59]} 36. Rd5 {[%clk 0:11:23]} c6 {[%clk 0:05:21]} 37. Rf5  {[%clk 0:10:40]} Bd4 {[%clk 0:05:39]} 38. Ke2 {[%clk 0:08:59]} c5  {[%clk 0:06:04]} 39. Kd3 {[%clk 0:08:13]} Kc6 40. f3 {[%clk 0:36:31]} gxf3  {[%clk 0:36:37]} 41. gxf3 {[%clk 0:36:49]} Rg6 {[%clk 0:36:15]} 42. Nf4  {[%clk 0:32:38]} Rh6 {[%clk 0:36:20]} 43. Rf7 {[%clk 0:31:08]} d5  {[%clk 0:36:34]} 44. Nxd5 {[%clk 0:31:30]} Rxh2 {[%clk 0:36:54]} 45. Nxb4+  {-error} 1-0

[Event "SUNWAY"]
[Date "2016.12.21"]
[Round "7.2"]
[White "Shyam, Sundar M."]
[Black "Zubov, Alexander"]
[Result "1/2-1/2"]
[WhiteElo "2532"]
[BlackElo "2606"]
[ECO "C77"]
[WhiteFed "IND"]
[BlackFed "UKR"]
[FCGameId "1381180534"]
[TimeControl "5400+30"]

1. e4 {[%clk 1:30:40]} e5 {[%clk 1:30:54]} 2. Nf3 {[%clk 1:31:04]} Nc6  {[%clk 1:31:18]} 3. Bb5 {[%clk 1:31:23]} a6 {[%clk 1:31:44]} 4. Ba4  {[%clk 1:31:51]} Nf6 {[%clk 1:32:05]} 5. d3 {[%clk 1:32:08]} d6 {[%clk 1:32:10]}  6. O-O {[%clk 1:31:25]} b5 {[%clk 1:30:06]} 7. Bb3 {[%clk 1:31:51]} Na5  {[%clk 1:30:29]} 8. Re1 {[%clk 1:24:58]} Be7 {[%clk 1:19:02]} 9. d4  {[%clk 1:15:51]} exd4 {[%clk 1:14:22]} 10. e5 {[%clk 1:15:58]} dxe5  {[%clk 1:14:46]} 11. Nxe5 {[%clk 1:15:58]} O-O 12. Bd2 {[%clk 1:14:41]} b4  {[%clk 1:07:04]} 13. a3 {[%clk 0:58:51]} Bd6 {[%clk 0:57:48]} 14. Ba2 c5  {[%clk 0:44:22]} 15. axb4 {[%clk 0:58:07]} cxb4 {[%clk 0:44:47]} 16. Bg5  {[%clk 0:57:33]} b3 {[%clk 0:39:38]} 17. cxb3 {[%clk 0:55:17]} Bxe5  {[%clk 0:36:23]} 18. Rxe5 {[%clk 0:55:26]} Nc6 {[%clk 0:36:37]} 19. Re1  {[%clk 0:54:45]} h6 {[%clk 0:35:32]} 20. Bh4 {[%clk 0:53:06]} g5  {[%clk 0:32:38]} 21. Bg3 {[%clk 0:52:02]} Bg4 {[%clk 0:32:54]} 22. Qd2  {[%clk 0:39:15]} Bf5 {[%clk 0:28:08]} 23. f3 {[%clk 0:27:07]} Nh5  {[%clk 0:26:20]} 24. Bf2 {[%clk 0:24:58]} Nf4 {[%clk 0:26:33]} 25. Na3  {[%clk 0:25:26]} Qf6 {[%clk 0:26:17]} 26. b4 {[%clk 0:20:41]} Nd3  {[%clk 0:21:33]} 27. Red1 {[%clk 0:20:29]} Ncxb4 {[%clk 0:21:33]} 28. Bc4 Rfe8  {[%clk 0:15:40]} 29. Bg3 {[%clk 0:19:04]} Re7 {[%clk 0:12:07]} 30. Bxd3  {[%clk 0:17:01]} Nxd3 {[%clk 0:12:34]} 31. Nc4 {[%clk 0:17:28]} Re6  {[%clk 0:12:44]} 32. Ra3 {[%clk 0:17:00]} Rc8 {[%clk 0:09:48]} 33. Rxd3  {[%clk 0:14:04]} Rxc4 {[%clk 0:10:13]} 34. Rxd4 {[%clk 0:14:32]} Rc2  {[%clk 0:09:55]} 35. Qb4 {[%clk 0:11:15]} Ree2 {[%clk 0:08:06]} 36. R4d2  {[%clk 0:10:09]} Rxb2 {[%clk 0:06:34]} 37. Qxb2 {[%clk 0:10:00]} Qxb2  {[%clk 0:06:59]} 38. Rxb2 {[%clk 0:10:29]} Rxb2 {[%clk 0:07:28]} 39. Rd6 Kh7  {[%clk 0:05:06]} 40. Rxa6 {[%clk 0:41:00]} 1/2-1/2

[Event "SUNWAY"]
[Date "2016.12.21"]
[Round "7.3"]
[White "Lopez Martinez, Josep Manuel"]
[Black "Kamsky, Gata"]
[Result "1/2-1/2"]
[WhiteElo "2552"]
[BlackElo "2661"]
[ECO "B32"]
[WhiteFed "ESP"]
[BlackFed "USA"]
[FCGameId "1275539192"]
[TimeControl "5400+30"]

1. e4 c5 2. Nf3 Nc6 3. d4 cxd4 4. Nxd4 Qb6 5. Nb3 Nf6 6. Nc3 e6 7. Bd3 a6 8. Qe2  d6 9. g4 Qc7 10. g5 Nd7 11. h4 b5 12. Be3 Bb7 13. f4 Nc5 14. a3 Be7 15. h5 h6  16. gxh6 gxh6 17. O-O-O O-O-O 18. Kb1 Kb8 19. Rhg1 Nxb3 20. cxb3 d5 21. exd5  exd5 22. Bf2 Rhe8 23. Qc2 Bf6 24. Ne2 d4 25. Ng3 Ne7 26. Qxc7+ Kxc7 27. Ne4 Bxe4  28. Bxe4 Nd5 29. Bf3 Nxf4 30. Rc1+ Kb8 31. Rc6 Re6 32. Bg3 Rxc6 33. Bxc6 Be5 34.  Rf1 Nd3 35. Be4 Rg8 36. Rf3 Rxg3 37. Rxg3 Bxg3 38. Bxd3 Kc7 39. b4 1/2-1/2

[Event "SUNWAY"]
[Date "2016.12.21"]
[Round "7.4"]
[White "Sasikiran, Krishnan"]
[Black "Sunilduth Lyna, Narayanan"]
[Result "1-0"]
[WhiteElo "2661"]
[BlackElo "2541"]
[ECO "B90"]
[WhiteFed "IND"]
[BlackFed "IND"]
[FCGameId "-159175174"]
[TimeControl "5400+30"]

1. e4 {[%clk 1:30:56]} c5 {[%clk 1:30:55]} 2. Nf3 {[%clk 1:31:15]} d6  {[%clk 1:31:21]} 3. d4 {[%clk 1:31:33]} cxd4 {[%clk 1:31:46]} 4. Nxd4  {[%clk 1:31:57]} Nf6 {[%clk 1:32:11]} 5. Nc3 {[%clk 1:32:08]} a6  {[%clk 1:32:38]} 6. Be3 {[%clk 1:32:24]} e5 {[%clk 1:32:57]} 7. Nb3  {[%clk 1:32:42]} Be6 {[%clk 1:33:22]} 8. f3 {[%clk 1:32:17]} Nbd7  {[%clk 1:30:52]} 9. Qd2 {[%clk 1:31:32]} b5 {[%clk 1:25:33]} 10. O-O-O  {[%clk 1:31:09]} Be7 {[%clk 1:25:49]} 11. g4 {[%clk 1:26:34]} b4  {[%clk 1:15:52]} 12. Nd5 {[%clk 1:24:08]} Bxd5 {[%clk 1:16:17]} 13. exd5  {[%clk 1:24:25]} Nb6 {[%clk 1:16:13]} 14. Na5 {[%clk 1:13:43]} Nfxd5  {[%clk 1:14:55]} 15. Nc6 {[%clk 1:10:01]} Qc7 {[%clk 1:11:45]} 16. Bxb6  {[%clk 1:08:44]} Nxb6 {[%clk 1:12:08]} 17. Nxe7 {[%clk 1:06:57]} Kxe7  {[%clk 1:12:16]} 18. f4 {[%clk 1:05:59]} a5 {[%clk 0:40:08]} 19. fxe5  {[%clk 1:01:37]} Rhd8 {[%clk 0:37:16]} 20. e6 {[%clk 0:41:34]} fxe6  {[%clk 0:37:22]} 21. Qg5+ {[%clk 0:41:16]} Kf7 {[%clk 0:34:10]} 22. Bd3  {[%clk 0:39:31]} Kg8 {[%clk 0:29:43]} 23. Rhf1 {[%clk 0:35:59]} Rf8  {[%clk 0:21:19]} 24. Rxf8+ {[%clk 0:29:07]} Rxf8 {[%clk 0:21:41]} 25. Qxa5  {[%clk 0:28:41]} Nd5 {[%clk 0:18:05]} 26. Qxc7 {[%clk 0:24:17]} Nxc7  {[%clk 0:18:31]} 27. a4 {[%clk 0:23:23]} bxa3 28. bxa3 {[%clk 0:23:47]} Ra8  {[%clk 0:18:09]} 29. Kb2 {[%clk 0:24:00]} Rb8+ {[%clk 0:18:34]} 30. Kc3  {[%clk 0:22:49]} Nd5+ {[%clk 0:11:43]} 31. Kd2 {[%clk 0:21:05]} Ra8  {[%clk 0:12:11]} 32. Ra1 {[%clk 0:20:26]} Kf7 {[%clk 0:12:33]} 33. a4  {[%clk 0:19:00]} Nc7 {[%clk 0:06:52]} 34. a5 {[%clk 0:13:51]} Ke7  {[%clk 0:07:19]} 35. h4 {[%clk 0:12:01]} d5 {[%clk 0:06:22]} 36. c4  {[%clk 0:08:10]} Kd6 {[%clk 0:06:37]} 37. cxd5 {[%clk 0:07:04]} exd5  {[%clk 0:06:51]} 38. a6 {[%clk 0:05:26]} h6 {[%clk 0:06:28]} 39. Rb1  {[%clk 0:03:58]} Kc6 {[%clk 0:06:31]} 40. Rc1+ {[%clk 0:32:44]} Kd6  {[%clk 0:36:55]} 41. Ra1 {[%clk 0:32:12]} Kc5 {[%clk 0:35:07]} 42. Be2 Ra7  {[%clk 0:30:28]} 43. Ke3 {[%clk 0:21:59]} Ra8 {[%clk 0:30:52]} 44. Rc1+  {[%clk 0:21:10]} Kd6 {[%clk 0:30:48]} 45. Ra1 {[%clk 0:21:01]} Kc5  {[%clk 0:31:05]} 46. Bd3 {[%clk 0:18:58]} Kd6 {[%clk 0:23:25]} 47. Rb1  {[%clk 0:16:04]} Kc6 {[%clk 0:22:53]} 48. Rc1+ {[%clk 0:15:08]} Kd6  {[%clk 0:23:17]} 49. Ra1 {[%clk 0:15:34]} Re8+ {[%clk 0:23:22]} 50. Kf3  {[%clk 0:14:35]} Rf8+ {[%clk 0:23:40]} 51. Kg3 {[%clk 0:14:48]} Ra8  {[%clk 0:23:33]} 52. h5 {[%clk 0:12:10]} Ne6 {[%clk 0:17:17]} 53. Bf1  {[%clk 0:10:58]} Nc5 {[%clk 0:17:10]} 54. a7 {[%clk 0:10:34]} Nb3  {[%clk 0:11:08]} 55. Ra6+ {[%clk 0:09:22]} Kc5 {[%clk 0:11:24]} 56. Bg2  {[%clk 0:08:48]} Kd4 {[%clk 0:08:21]} 57. Ra4+ {[%clk 0:07:03]} Ke5  {[%clk 0:07:35]} 58. Ra2 {[%clk 0:06:08]} Nc5 {[%clk 0:07:28]} 59. Rd2  {[%clk 0:05:00]} Ne4+ {[%clk 0:06:57]} 60. Bxe4 {[%clk 0:05:20]} Kxe4  {[%clk 0:07:26]} 61. Re2+ {[%clk 0:04:57]} Kd3 {[%clk 0:07:51]} 62. Re7  {[%clk 0:05:14]} d4 {[%clk 0:08:19]} 63. Rxg7 {[%clk 0:05:01]} Kd2  {[%clk 0:06:57]} 64. Rh7 {[%clk 0:04:42]} d3 {[%clk 0:07:23]} 65. Rxh6  {[%clk 0:04:55]} Rxa7 {[%clk 0:07:45]} 66. Rd6 {[%clk 0:04:12]} Ke2  {[%clk 0:08:09]} 67. h6 {[%clk 0:01:56]} d2 {[%clk 0:08:30]} 68. Kh4  {[%clk 0:01:55]} Ra6 {[%clk 0:08:09]} 69. Rxd2+ {[%clk 0:01:57]} Kxd2  {[%clk 0:08:37]} 70. g5 {[%clk 0:01:54]} Ke3 {[%clk 0:09:00]} 71. h7 Ra1  {[%clk 0:09:26]} 72. Kg4 {[%clk 0:01:36]} Ke4 {[%clk 0:07:13]} 73. g6  {[%clk 0:01:30]} Rg1+ {[%clk 0:07:34]} 74. Kh3 {[%clk 0:01:52]} Kf5  {[%clk 0:05:00]} 75. g7 {[%clk 0:01:43]} Rxg7 {[%clk 0:05:12]} 76. h8=Q  {[%clk 0:02:08]} Rg6 {[%clk 0:05:35]} 77. Qh7 {[%clk 0:02:00]} Kf6  {[%clk 0:06:02]} 78. Kh4 {[%clk 0:01:41]} Rg7 {[%clk 0:06:29]} 79. Qh8  {[%clk 0:01:19]} Kg6 {[%clk 0:06:24]} 80. Kg4 {[%clk 0:01:29]} Re7  {[%clk 0:06:38]} 81. Qh5+ {[%clk 0:01:24]} Kg7 {[%clk 0:07:02]} 82. Qd5  {[%clk 0:01:42]} Kh7 {[%clk 0:05:57]} 83. Kg5 {[%clk 0:01:28]} Rg7+  {[%clk 0:06:24]} 84. Kf5 {[%clk 0:01:28]} Rg1 {[%clk 0:06:34]} 85. Qd4  {[%clk 0:01:10]} Rf1+ {[%clk 0:06:14]} 86. Kg5 {[%clk 0:01:05]} Rf7  {[%clk 0:06:39]} 87. Qe5 {[%clk 0:01:07]} Rg7+ {[%clk 0:04:46]} 88. Kf6  {[%clk 0:01:22]} Kh8 {[%clk 0:05:04]} 89. Qh2+ {[%clk 0:01:16]} Kg8  {[%clk 0:05:30]} 90. Qh5 {[%clk 0:01:42]} 1-0

[Event "SUNWAY"]
[Date "2016.12.21"]
[Round "7.5"]
[White "Burmakin, Vladimir"]
[Black "Ivanisevic, Ivan"]
[Result "1/2-1/2"]
[WhiteElo "2535"]
[BlackElo "2648"]
[ECO "D02"]
[WhiteFed "RUS"]
[BlackFed "SRB"]
[FCGameId "801121469"]
[TimeControl "5400+30"]

1. d4 {[%clk 1:30:57]} d5 {[%clk 1:19:13]} 2. Nf3 {[%clk 1:31:01]} Bf5  {[%clk 1:19:22]} 3. c4 {[%clk 1:29:59]} e6 {[%clk 1:19:45]} 4. e3  {[%clk 1:29:54]} c6 {[%clk 1:19:36]} 5. Nc3 {[%clk 1:30:08]} Nd7  {[%clk 1:19:51]} 6. Bd3 {[%clk 1:29:24]} Bxd3 {[%clk 1:18:55]} 7. Qxd3  {[%clk 1:29:50]} f5 {[%clk 1:18:30]} 8. cxd5 {[%clk 1:21:40]} cxd5  {[%clk 1:18:53]} 9. Qb5 {[%clk 1:21:59]} Rb8 {[%clk 1:17:32]} 10. Bd2  {[%clk 1:19:38]} Bd6 {[%clk 1:12:11]} 11. Ne2 {[%clk 1:19:51]} a6  {[%clk 1:02:55]} 12. Qb3 {[%clk 1:19:58]} Qe7 {[%clk 1:02:46]} 13. Nf4  {[%clk 1:13:07]} Nh6 {[%clk 1:03:07]} 14. Nd3 {[%clk 1:12:51]} Nf7  {[%clk 0:59:37]} 15. Bb4 {[%clk 1:09:24]} Bxb4+ 16. Qxb4 {[%clk 1:09:38]} Qxb4+  {[%clk 0:59:53]} 17. Nxb4 {[%clk 1:09:41]} Ke7 {[%clk 1:00:12]} 18. Ke2  {[%clk 1:09:08]} Rbc8 {[%clk 0:59:01]} 19. Rac1 {[%clk 1:09:11]} g5  {[%clk 0:59:00]} 20. Nd3 {[%clk 1:09:26]} Kd6 {[%clk 0:56:35]} 21. h4  {[%clk 0:58:25]} Rxc1 {[%clk 0:55:35]} 22. Rxc1 {[%clk 0:58:46]} h6  {[%clk 0:56:00]} 23. Rh1 {[%clk 0:56:39]} g4 {[%clk 0:52:43]} 24. Nd2  {[%clk 0:57:03]} e5 {[%clk 0:49:20]} 25. Nb3 {[%clk 0:52:45]} e4  {[%clk 0:43:11]} 26. Ndc5 {[%clk 0:53:03]} Nxc5 {[%clk 0:42:38]} 27. Nxc5  {[%clk 0:52:31]} Nd8 {[%clk 0:42:43]} 28. Rc1 {[%clk 0:52:10]} Rh7  {[%clk 0:42:22]} 29. g3 {[%clk 0:38:27]} Nc6 {[%clk 0:42:22]} 30. Rc3  {[%clk 0:37:11]} Na5 {[%clk 0:36:28]} 31. Na4 {[%clk 0:36:05]} Rc7  {[%clk 0:35:56]} 32. Rxc7 {[%clk 0:36:03]} Kxc7 {[%clk 0:36:22]} 33. Nc5  {[%clk 0:31:13]} Nc4 {[%clk 0:32:44]} 34. b3 {[%clk 0:30:40]} Nd6  {[%clk 0:32:49]} 35. Kd2 {[%clk 0:30:33]} a5 {[%clk 0:32:31]} 36. a4  {[%clk 0:29:49]} Kc6 1/2-1/2

[Event "SUNWAY"]
[Date "2016.12.21"]
[Round "7.6"]
[White "Granda Zuniga, Julio E"]
[Black "Narciso Dublan, Marc"]
[Result "0-1"]
[WhiteElo "2646"]
[BlackElo "2508"]
[ECO "C11"]
[WhiteFed "PER"]
[BlackFed "ESP"]
[FCGameId "1068081570"]
[TimeControl "5400+30"]

1. e4 {[%clk 1:29:57]} e6 {[%clk 1:30:30]} 2. d4 {[%clk 1:30:14]} d5  {[%clk 1:30:51]} 3. Nc3 {[%clk 1:30:34]} Nf6 {[%clk 1:28:12]} 4. e5  {[%clk 1:30:16]} Nfd7 {[%clk 1:28:32]} 5. f4 {[%clk 1:22:58]} c5  {[%clk 1:28:47]} 6. Nf3 {[%clk 1:23:25]} Nc6 {[%clk 1:29:04]} 7. Be3  {[%clk 1:22:32]} cxd4 {[%clk 1:28:43]} 8. Nxd4 {[%clk 1:22:57]} Bc5  {[%clk 1:28:30]} 9. Qd2 {[%clk 1:22:53]} O-O {[%clk 1:28:45]} 10. O-O-O  {[%clk 1:22:50]} a6 {[%clk 1:28:48]} 11. h4 {[%clk 1:22:24]} Nxd4  {[%clk 1:28:37]} 12. Bxd4 {[%clk 1:22:51]} b5 {[%clk 1:28:52]} 13. h5 b4  {[%clk 1:26:49]} 14. Ne2 {[%clk 1:20:11]} a5 {[%clk 1:26:23]} 15. h6  {[%clk 1:17:25]} g6 {[%clk 1:25:59]} 16. Kb1 {[%clk 1:07:30]} Ba6  {[%clk 1:24:55]} 17. Nc1 {[%clk 1:07:55]} Qc7 {[%clk 1:21:25]} 18. Nb3  {[%clk 1:02:02]} Be7 {[%clk 1:09:59]} 19. Bd3 {[%clk 1:02:06]} a4  {[%clk 1:06:22]} 20. Nc1 {[%clk 1:02:32]} Rfc8 {[%clk 1:04:53]} 21. b3  {[%clk 1:00:24]} Nc5 {[%clk 1:00:21]} 22. Bxc5 {[%clk 0:57:04]} Bxc5  {[%clk 0:56:34]} 23. Qe2 {[%clk 0:53:44]} Bxd3 {[%clk 0:47:38]} 24. Rxd3  {[%clk 0:52:39]} Ra6 {[%clk 0:31:30]} 25. Rd2 {[%clk 0:07:06]} Qa7  {[%clk 0:16:41]} 26. Rh3 {[%clk 0:04:00]} Rac6 {[%clk 0:14:51]} 27. Nd3  {[%clk 0:01:07]} axb3 {[%clk 0:13:27]} 28. cxb3 {[%clk 0:01:36]} Bd4  {[%clk 0:13:43]} 29. Rf3 {[%clk 0:01:20]} Rc3 {[%clk 0:11:29]} 30. Rb2  {[%clk 0:01:08]} Rxd3 {[%clk 0:10:44]} 0-1

[Event "SUNWAY"]
[Date "2016.12.21"]
[Round "7.7"]
[White "Petrov, Nikita"]
[Black "Edouard, Romain"]
[Result "0-1"]
[WhiteElo "2512"]
[BlackElo "2611"]
[ECO "A04"]
[WhiteFed "RUS"]
[BlackFed "FRA"]
[FCGameId "-1909219812"]
[TimeControl "5400+30"]

1. Nf3 {[%clk 1:30:56]} c5 {[%clk 1:26:10]} 2. c4 {[%clk 1:30:49]} Nc6  {[%clk 1:26:35]} 3. Nc3 e5 {[%clk 1:26:41]} 4. g3 {[%clk 1:29:54]} g6  {[%clk 1:27:00]} 5. Bg2 {[%clk 1:30:13]} Bg7 6. O-O {[%clk 1:28:49]} Nge7  {[%clk 1:26:06]} 7. a3 {[%clk 1:28:32]} O-O {[%clk 1:25:13]} 8. b4  {[%clk 1:23:36]} d5 9. cxd5 {[%clk 1:07:39]} Nxd5 {[%clk 1:24:29]} 10. Nxd5  {[%clk 1:08:02]} Qxd5 {[%clk 1:24:46]} 11. Bb2 e4 {[%clk 1:15:47]} 12. Bxg7  {[%clk 1:07:56]} Kxg7 {[%clk 1:10:01]} 13. Ne1 {[%clk 0:49:30]} cxb4  {[%clk 0:35:04]} 14. axb4 {[%clk 0:39:53]} Bf5 {[%clk 0:33:32]} 15. d3 Rad8  {[%clk 0:33:55]} 16. Qb1 {[%clk 0:36:09]} Rfe8 {[%clk 0:33:05]} 17. b5  {[%clk 0:17:28]} Nd4 {[%clk 0:31:30]} 18. e3 {[%clk 0:15:55]} Nxb5  {[%clk 0:30:08]} 19. Qb2+ {[%clk 0:15:58]} Kg8 {[%clk 0:28:48]} 20. Ra4  {[%clk 0:14:04]} a6 {[%clk 0:23:11]} 21. h3 h5 22. g4 {[%clk 0:12:34]} hxg4  {[%clk 0:23:29]} 23. hxg4 {[%clk 0:12:59]} Bxg4 {[%clk 0:19:35]} 24. Bxe4 Qe5  {[%clk 0:20:02]} 25. Qxe5 {[%clk 0:08:44]} Rxe5 {[%clk 0:20:26]} 26. Bxb7  {[%clk 0:07:19]} Be2 {[%clk 0:18:12]} 27. Rxa6 {[%clk 0:06:13]} Nd6  {[%clk 0:18:02]} 28. Bg2 {[%clk 0:03:11]} Rb5 29. Ra8 {[%clk 0:03:34]} Rxa8  {[%clk 0:17:38]} 30. Bxa8 Rb1 31. Bf3 {[%clk 0:02:13]} Bxf1 {[%clk 0:17:58]} 32.  Kxf1 {[%clk 0:02:12]} f5 {[%clk 0:17:53]} 33. Ke2 {[%clk 0:02:01]} Kg7  {[%clk 0:16:13]} 34. Bd5 {[%clk 0:01:53]} Nb5 {[%clk 0:16:21]} 35. Bc4 Rb2+  {[%clk 0:16:45]} 36. Kf3 {[%clk 0:01:35]} Nc3 37. e4 Nd1 {[%clk 0:15:10]} 38.  exf5 {[%clk 0:00:51]} Rxf2+ 39. Kg3 {[%clk 0:30:40]} Rxf5 {[%clk 0:15:01]} 40.  Nf3 {[%clk 0:29:14]} Nb2 {[%clk 0:39:57]} 41. Nd4 Ra5 0-1

[Event "SUNWAY"]
[Date "2016.12.21"]
[Round "7.8"]
[White "Van Foreest, Jorden"]
[Black "Liang, Awonder"]
[Result "1-0"]
[WhiteElo "2605"]
[BlackElo "2495"]
[ECO "B96"]
[WhiteFed "NED"]
[BlackFed "USA"]
[FCGameId "2138098662"]
[TimeControl "5400+30"]

1. e4 {[%clk 1:29:11]} c5 {[%clk 1:30:51]} 2. Nf3 {[%clk 1:29:36]} d6  {[%clk 1:31:14]} 3. d4 {[%clk 1:29:55]} cxd4 {[%clk 1:31:36]} 4. Nxd4  {[%clk 1:30:21]} Nf6 {[%clk 1:31:55]} 5. Nc3 {[%clk 1:30:46]} a6  {[%clk 1:32:19]} 6. Bg5 {[%clk 1:31:12]} e6 {[%clk 1:30:44]} 7. f4  {[%clk 1:31:35]} Nbd7 {[%clk 1:29:27]} 8. Qe2 {[%clk 1:31:57]} Qc7  {[%clk 1:26:13]} 9. O-O-O {[%clk 1:32:15]} Be7 {[%clk 1:26:01]} 10. g4  {[%clk 1:30:28]} b5 {[%clk 1:24:47]} 11. Bg2 {[%clk 1:30:21]} Bb7  {[%clk 1:23:42]} 12. e5 {[%clk 1:26:48]} dxe5 {[%clk 1:13:00]} 13. fxe5  {[%clk 1:25:42]} Nd5 {[%clk 1:12:14]} 14. Bxe7 {[%clk 1:25:20]} Nxc3  {[%clk 1:09:00]} 15. bxc3 {[%clk 1:25:33]} Kxe7 {[%clk 1:05:51]} 16. Bxb7  {[%clk 1:25:49]} Qxb7 {[%clk 1:06:15]} 17. Qd2 {[%clk 1:26:16]} Rhe8  {[%clk 1:00:32]} 18. Nxe6 {[%clk 1:10:19]} fxe6 {[%clk 0:54:33]} 19. Rhf1  {[%clk 1:10:46]} Kd8 {[%clk 0:49:55]} 20. Rf7 {[%clk 1:11:10]} Ra7  {[%clk 0:50:18]} 21. Qf2 {[%clk 1:11:24]} Kc8 {[%clk 0:44:10]} 22. Rdxd7  {[%clk 1:10:13]} Qxd7 {[%clk 0:39:54]} 23. Qxa7 {[%clk 1:10:32]} Qc6  {[%clk 0:39:28]} 24. Rxg7 {[%clk 1:10:45]} h6 {[%clk 0:39:10]} 25. h4  {[%clk 1:10:52]} Rd8 {[%clk 0:23:14]} 26. g5 {[%clk 1:10:50]} hxg5  {[%clk 0:23:01]} 27. hxg5 {[%clk 1:11:15]} 1-0